Cogmind - Beta 14 @@@ ROGUE MODE // 2025.01.05 @ 14:03:58 Player: luckinvolved Result: Destroyed by Y-45 Defender with Heavy Assault Rifle Performance ------------- Evolutions (2) 1000 Regions Visited (6) 1200 Robots Destroyed (39) 195 Value Destroyed (1346) 1346 Prototype IDs (27) 540 Alien Tech Used (0) 0 Bonus (548) 548 TOTAL SCORE: 4829 Bonus ------- High Alert Combat Kills 41 Follower Combat Kills 7 Entered Garrisons 200 Aligned with FarCom 300 Cogmind --------- Core Integrity 0/550 Matter 114/300 Energy 35/100 System Corruption 0% Temperature Cool (9) Movement Core (1400) Ox27 Location -8/Garrison Parts ------- > --- POWER (1) -------- (None) > --- PROPULSION (2) --- (None) > --- UTILITY (6) ------ Disposable Heat Sink Disposable Heat Sink Huge Storage Unit Advanced Targeting Computer > --- WEAPON (2) ------- (None) > --- INVENTORY (25) --- Cooled Ion Engine Improved Heat Sink Disposable Heat Sink Signal Interpreter Improved Signal Interpreter Transport Network Coupler ECM Suite Cloak of Protection EM Pulse Gun Beam Rifle Plasma Cutter Peak State ------------ > --- POWER ------------ Cooled Ion Engine > --- PROPULSION ------- Wheel Compact Wheel > --- UTILITY ---------- Disposable Heat Sink Huge Storage Unit Cloak of Protection Utility Shielding Backup Plating I Hacking Suite > --- WEAPON ----------- Beam Cannon Enhanced Autogun > --- INVENTORY -------- Cooled Ion Engine Cooled Ion Engine Cooled Ion Engine Wheel Wheel Compact Wheel Improved Heat Sink Improved Heat Sink Disposable Heat Sink Disposable Heat Sink Disposable Heat Sink Structural Scanner Signal Interpreter Transport Network Coupler ECM Suite Tractor Beam EM Pulse Gun Beam Cannon Beam Cannon Rocket Launcher Plasma Cutter [Rating: 29] Favorites ----------- Power Cooled Ion Engine Engine Cooled Ion Engine Propulsion Compact Wheel Treads Light Treads Wheel Compact Wheel Utility Advanced Targeting Computer Device Disposable Heat Sink Storage Huge Storage Unit Processor Advanced Targeting Computer Hackware Hacking Suite Protection Utility Shielding Weapon Beam Cannon Energy Gun Beam Rifle Energy Cannon Beam Cannon Ballistic Gun Assault Rifle Launcher Rocket Launcher Special Weapon Plasma Cutter Build | -11 -10 -10 -10 -9 -8 -8 ------- Run | Yrd Mat Min Exi Min Mat Gar Slots Evolved 4 | . . . . . 4 . Power . | . . . . . . . Propulsion . | . . . . . . . Utility 4 | . . . . . 4 . Weapon . | . . . . . . . Parts Attached 66 | 6 13 1 . . 8 38 Power 4 | 1 1 . . . . 2 Engine 4 | 1 1 . . . . 2 Core . | . . . . . . . Reactor . | . . . . . . . Propulsion 11 | 2 5 1 . . . 3 Treads 3 | . 3 . . . . . Leg . | . . . . . . . Wheel 8 | 2 2 1 . . . 3 Hover . | . . . . . . . Flight . | . . . . . . . Utility 20 | 1 5 . . . 5 9 Device 9 | . 2 . . . 2 5 Storage 3 | 1 2 . . . . . Processor 3 | . . . . . 1 2 Hackware 1 | . 1 . . . . . Protection 4 | . . . . . 2 2 Artifact . | . . . . . . . Weapon 31 | 2 2 . . . 3 24 Energy Gun 6 | . . . . . . 6 Energy Cannon 13 | . 2 . . . 2 9 Ballistic Gun 3 | 2 . . . . 1 . Ballistic Cannon . | . . . . . . . Launcher 8 | . . . . . . 8 Special Weapon 1 | . . . . . . 1 Impact Weapon . | . . . . . . . Slashing Weapon . | . . . . . . . Piercing Weapon . | . . . . . . . Special Melee Weapon . | . . . . . . . Unidentified Prototypes 2 | . 1 . . . 1 . Parts Lost 27 | . . 1 . . 1 25 Power 3 | . . . . . . 3 Propulsion 5 | . . 1 . . . 4 Utility 9 | . . . . . . 9 Weapon 10 | . . . . . 1 9 Highest Loss Streak 15 | . . 1 . . 1 15 To Critical Strikes . | . . . . . . . Average Slot Usage (%) 98 | . 96 99 100 100 100 98 Engine 11 | . 14 14 14 14 9 9 Treads 3 | . 11 . . . . . Wheel 18 | . 16 27 28 28 18 17 Device 9 | . 4 . . . 11 14 Storage 11 | . 14 14 14 14 9 9 Processor 8 | . . . . . 6 16 Hackware 5 | . 9 14 14 14 9 . Protection 7 | . . . . . 18 12 Energy Gun 3 | . . . . . . 7 Energy Cannon 13 | . 11 28 28 28 18 8 Ballistic Gun 4 | . 14 . . . . . Peak Build Rating 29 | 6 14 15 15 15 29 26 Average Rating 18 | 4 11 14 15 15 23 24 On Entrance 12 | . 6 14 15 15 15 23 Naked Turns . | . . . . . . . Heaviest Build 105 | 13 94 94 94 94 105 103 Greatest Support 40 | 26 40 32 26 26 26 26 Greatest Overweight (x) 31 | . 2 5 3 3 4 31 Average Overweight (x) 2 | . . 2 3 3 3 3 Largest Inventory Capacity 25 | 8 25 25 25 25 25 25 Average Capacity 22 | 7 16 25 25 25 25 25 Most Carried 25 | 7 25 25 25 25 25 25 Average Carried 20 | 3 14 24 24 25 23 22 Final Capacity 25 | 8 25 25 25 25 25 25 Final Carried 25 | 7 25 25 25 25 24 11 Class Distribution -------------------- 98% | Mutant Dominant Class ---------------- Mutant | -10/Materials Mutant | -10/Mines Mutant | -10/Exiles Mutant | -9/Mines Mutant | -8/Materials Mutant | -8/Garrison Resources | -11 -10 -10 -10 -9 -8 -8 ----------- Run | Yrd Mat Min Exi Min Mat Gar Matter Collected 932 | 264 262 10 . . 75 321 Remotely . | . . . . . . . Salvage Created 1265 | 97 433 148 . 34 83 470 Parts 64 | 2 28 7 . 1 2 24 Haulers Intercepted 2 | . 2 . . . . . Recyclers Shooed . | . . . . . . . Parts Field Recycled . | . . . . . . . Retrieved Matter . | . . . . . . . Parts Self-Destructed . | . . . . . . . Prevented . | . . . . . . . Kills | -11 -10 -10 -10 -9 -8 -8 ------- Run | Yrd Mat Min Exi Min Mat Gar Combat Hostiles Destroyed 32 | . 6 3 . 2 2 19 Guns 6 | . 3 . . . . 3 Cannons 13 | . 2 3 . 2 2 4 AOE 11 | . . . . . . 11 Classes Destroyed 12 | 1 6 1 . 1 . 3 Worker 1 | . 1 . . . . . Builder 1 | . 1 . . . . . Hauler 2 | . 2 . . . . . Recycler 1 | 1 . . . . . . Operator 1 | . 1 . . . . . Watcher 1 | . 1 . . . . . Swarmer 9 | . . . . 2 . 7 Grunt 17 | . 6 2 . . 2 7 Sentry 3 | . . . . . . 3 Demolisher 1 | . . 1 . . . . Hunter 1 | . . . . . . 1 Programmer 1 | . . . . . . 1 Best Kill Streak 9 | 1 2 2 . 2 2 9 Combat Bots Only 9 | . 2 1 . 2 2 9 Max Kills in Single Turn 4 | 1 1 1 . 1 1 4 Gunslinging . | . . . . . . . Exploded 4 | . . . . . . 4 Melee . | . . . . . . . Uniques/NPCs Destroyed . | . . . . . . . Combat | -11 -10 -10 -10 -9 -8 -8 -------- Run | Yrd Mat Min Exi Min Mat Gar Hostile Shots Fired 209 | . 38 16 . 7 7 141 Missed 55 | . 9 4 . 1 2 39 Damage Taken 2881 | . 327 276 . 49 81 2148 Core 615 | . 31 30 . . 51 503 Absorbed by Shields . | . . . . . . . Redirected to Shielding 54 | . . . . . . 54 Core Remaining (%) 87 | 100 . . . 75 . . Volleys Fired 121 | 1 41 9 . 5 8 57 Largest 2 | 2 2 2 . 2 2 2 Hottest 125 | 40 120 120 . 120 120 125 Shots Fired 219 | 2 74 18 . 10 16 99 Gun 96 | 2 62 . . . . 32 Cannon 94 | . 12 18 . 10 16 38 Launcher 21 | . . . . . . 21 Special 8 | . . . . . . 8 Kinetic 64 | 2 62 . . . . . Thermal 133 | . 12 18 . 10 16 77 Explosive 21 | . . . . . . 21 Electromagnetic 1 | . . . . . . 1 Robot Hit Streak 22 | 2 12 7 . 2 5 22 Robot Miss Streak 4 | . 4 1 . 4 2 1 Penetration Max . | . . . . . . . Secondary Targets . | . . . . . . . Shots Hit Robots 130 | 2 49 13 . 3 9 54 Core Hits 62 | 2 18 4 . 2 5 31 Critical Kills 2 | . 1 . . . . 1 Critical Parts Destroyed 2 | . 2 . . . . . Critical Strikes 4 | . 3 . . . . 1 Meltdown 2 | . 1 . . . . 1 Destroy 2 | . 2 . . . . . Melee Attacks . | . . . . . . . Impact . | . . . . . . . Slashing . | . . . . . . . Piercing . | . . . . . . . Sneak Attacks . | . . . . . . . Combat Hostiles . | . . . . . . . Follow-up Attacks . | . . . . . . . Damage Inflicted 3015 | 17 587 234 . 52 158 1967 Guns 679 | 17 423 . . . . 239 Cannons 1057 | . 164 234 . 52 158 449 Explosions 1279 | . . . . . . 1279 Melee . | . . . . . . . Ramming . | . . . . . . . Kinetic 440 | 17 423 . . . . . Thermal 1281 | . 164 234 . 52 158 673 Explosive 1279 | . . . . . . 1279 Electromagnetic 15 | . . . . . . 15 Impact . | . . . . . . . Slashing . | . . . . . . . Piercing . | . . . . . . . Highest Corruption . | . . . . . . . Average Corruption . | . . . . . . . Corruption Purged . | . . . . . . . Corruption Blocked . | . . . . . . . Overload Shots . | . . . . . . . Overflow Damage 105 | . . . . . . 105 Projectiles . | . . . . . . . Explosions 105 | . . . . . . 105 Melee . | . . . . . . . Knockbacks . | . . . . . . . Impact . | . . . . . . . Kinetic . | . . . . . . . Secondary . | . . . . . . . Self-Inflicted Damage 236 | . . . . . . 236 Shots 8 | . . . . . . 8 Rammed . | . . . . . . . Targets Rammed . | . . . . . . . Kicked . | . . . . . . . Crushed . | . . . . . . . Highest Temperature 226 | . 114 195 . 226 179 207 Average Temperature 66 | . 35 76 . 127 78 53 Received Heat Transfer 1061 | . 180 33 . . 45 803 Siege Activations . | . . . . . . . Robots Corrupted . | . . . . . . . Combat Hostiles . | . . . . . . . Parts Fried . | . . . . . . . Impact Corruptions . | . . . . . . . Robots Melted 2 | . 1 . . . . 1 Combat Hostiles 2 | . 1 . . . . 1 Parts Melted 5 | . . 3 . . 1 1 Heat Transferred 2586 | . 333 481 . 111 333 1328 Parts Sabotaged . | . . . . . . . Parts Stolen . | . . . . . . . Parts Stripped . | . . . . . . . Power Chain Reactions . | . . . . . . . Alert | -11 -10 -10 -10 -9 -8 -8 ------- Run | Yrd Mat Min Exi Min Mat Gar Peak Influence 741 | 5 173 73 . 74 135 741 Initial 28 | . 3 23 . . 28 1 Average 205 | 1 71 57 . 20 64 355 Maximum Alert Level 3 | . . . . . . 3 Low Security (%) 63 | 100 100 100 . 100 100 25 Level 1 20 | . . . . . . 42 Level 2 13 | . . . . . . 27 Level 3 2 | . . . . . . 4 Level 4 . | . . . . . . . Level 5 . | . . . . . . . High Security . | . . . . . . . Max Security . | . . . . . . . Squads Dispatched 6 | . 5 . . . 1 . Investigation 5 | . 4 . . . 1 . Extermination . | . . . . . . . Reinforcement 1 | . 1 . . . . . Assault . | . . . . . . . Garrison . | . . . . . . . Intercept . | . . . . . . . Searches Triggered . | . . . . . . . Construction Impeded . | . . . . . . . Haulers Reinforced . | . . . . . . . Active Scanning Responses . | . . . . . . . Cargo Convoy Interrupts . | . . . . . . . Stealth | -11 -10 -10 -10 -9 -8 -8 --------- Run | Yrd Mat Min Exi Min Mat Gar Distress Signals 2 | . 1 1 . . . . Communications Jammed . | . . . . . . . Distress Signals . | . . . . . . . Times Spotted 59 | . 20 9 . 3 4 23 Peak Tracking Total 8 | . 4 5 . 3 2 8 Tactical Retreats 6 | . 4 . . . . 2 Traps | -11 -10 -10 -10 -9 -8 -8 ------- Run | Yrd Mat Min Exi Min Mat Gar Traps Triggered 8 | . 2 . . . . 6 Indirectly . | . . . . . . . Trap Hack Attempts . | . . . . . . . Triggered . | . . . . . . . Disarmed . | . . . . . . . Reprogrammed . | . . . . . . . Reused . | . . . . . . . Traps Extracted . | . . . . . . . Installed . | . . . . . . . Triggered . | . . . . . . . Machines | -11 -10 -10 -10 -9 -8 -8 ---------- Run | Yrd Mat Min Exi Min Mat Gar Machines Disabled 4 | . 1 . . . 1 2 Max in Single Turn 2 | . 1 . . . 1 2 Phase Generator 1 | . . . . . . 1 Machines Repaired . | . . . . . . . Machines Dismantled . | . . . . . . . Machines Sabotaged . | . . . . . . . Overloaded Fab Kills . | . . . . . . . Hacking | -11 -10 -10 -10 -9 -8 -8 --------- Run | Yrd Mat Min Exi Min Mat Gar Machines Accessed 13 | . 6 . 1 . 3 3 Terminals 8 | . 4 . . . 1 3 Fabricators . | . . . . . . . Repair Stations . | . . . . . . . Recycling Units 3 | . 2 . . . 1 . Scanalyzers . | . . . . . . . Garrison Access 1 | . . . . . 1 . Total Hacks 33 | . 20 . 1 . 7 5 Successful 21 | . 13 . 1 . 4 3 Failed 11 | . 6 . . . 3 2 Catastrophic 1 | . . . . . 1 . Database Lockouts 1 | . 1 . . . . . Manual 22 | . 15 . 1 . 6 . Terminals 26 | . 16 . . . 5 5 Fabricators . | . . . . . . . Repair Stations . | . . . . . . . Recycling Units 5 | . 4 . . . 1 . Scanalyzers . | . . . . . . . Garrison Access 1 | . . . . . 1 . Terminal Hacks 11 | . 6 . 1 . 1 3 Robot Analysis 3 | . 2 . . . 1 . Prototype ID Bank 2 | . 2 . . . . . Branch Access Points 1 | . 1 . . . . . Emergency Access Points 1 | . . . . . . 1 Terminal Index 1 | . 1 . . . . . Patrol Navigation 1 | . . . . . . 1 Security Stations 1 | . . . . . . 1 Derelict Proto ID Bank 1 | . . . 1 . . . Fabricator Hacks . | . . . . . . . Repair Station Hacks . | . . . . . . . Recycling Unit Hacks 1 | . 1 . . . . . Report Inventory 1 | . 1 . . . . . Scanalyzer . | . . . . . . . Garrison Access Hacks 1 | . . . . . 1 . Unlock Access 1 | . . . . . 1 . Unauthorized Hacks 8 | . 6 . . . 2 . Terminals 5 | . 4 . . . 1 . Botnet 5 | . 4 . . . 1 . Fabricators . | . . . . . . . Repair Stations . | . . . . . . . Recycling Units 3 | . 2 . . . 1 . Tunnel 3 | . 2 . . . 1 . Scanalyzers . | . . . . . . . Garrison Access . | . . . . . . . Data Cores Recovered . | . . . . . . . Used . | . . . . . . . Hacking Detections 7 | . 4 . . . 2 1 Full Trace Events 4 | . 2 . . . 1 1 Feedback Events . | . . . . . . . Feedback Blocked . | . . . . . . . Robot Schematics Acquired . | . . . . . . . Robots Built . | . . . . . . . Authchips . | . . . . . . . Time . | . . . . . . . Total Robot Build Rating . | . . . . . . . Part Schematics Acquired . | . . . . . . . Parts Built . | . . . . . . . Authchips . | . . . . . . . Time . | . . . . . . . Total Part Build Rating . | . . . . . . . Parts Repaired . | . . . . . . . Time . | . . . . . . . Parts Recycled . | . . . . . . . Recycled Matter . | . . . . . . . Retrieved Matter . | . . . . . . . Retrieved Components . | . . . . . . . Parts Scanalyzed . | . . . . . . . Part Schematics Acquired . | . . . . . . . Parts Damaged . | . . . . . . . Bothacking | -11 -10 -10 -10 -9 -8 -8 ------------ Run | Yrd Mat Min Exi Min Mat Gar Used RIF Installer . | . . . . . . . Robots Hacked . | . . . . . . . Non-combat . | . . . . . . . Combat . | . . . . . . . Robot Hacks Applied . | . . . . . . . Relay Couplers Released . | . . . . . . . Fabnet Peak Effective % . | . . . . . . . Robots Rewired . | . . . . . . . Allies Hacked . | . . . . . . . Hacks Repelled . | . . . . . . . Allies | -11 -10 -10 -10 -9 -8 -8 -------- Run | Yrd Mat Min Exi Min Mat Gar Total Allies 1 | . . . . 1 . . Largest Group 1 | . . . . 1 1 . Highest-Rated Group 31 | . . . . 31 31 . Highest-Rated Ally 31 | . . . . 31 31 . Total Orders . | . . . . . . . Ally Attacks 9 | . . . . 9 . . Total Damage 83 | . . . . 83 . . Kills 1 | . . . . 1 . . Allies Corrupted . | . . . . . . . Allies Melted . | . . . . . . . Intel | -11 -10 -10 -10 -9 -8 -8 ------- Run | Yrd Mat Min Exi Min Mat Gar Robot Analysis Total 3 | . 2 . . . 1 . Derelict Logs Recovered . | . . . . . . . Drone Launches . | . . . . . . . Drone Recoveries . | . . . . . . . Exploration | -11 -10 -10 -10 -9 -8 -8 ------------- Run | Yrd Mat Min Exi Min Mat Gar Turns Passed 3918 | 59 1082 153 290 155 403 1776 Spaces Moved 2189 | 43 678 75 214 58 169 952 Core 2 | 1 . . . . . 1 Treads 202 | . 202 . . . . . Legs . | . . . . . . . Wheels 1985 | 42 476 75 214 58 169 951 Hover . | . . . . . . . Flight . | . . . . . . . Fastest Speed 50 | 50 90 130 135 135 135 135 Average Speed 134 | 87 130 132 135 135 139 139 Slowest Speed 1600 | 90 160 175 135 135 150 1600 Overloaded Moves . | . . . . . . . Propulsion Burnouts . | . . . . . . . Robots Hopped . | . . . . . . . Cave-ins Triggered . | . . . . . . . Exploration Rate (%) 40 | 5 85 26 60 23 17 65 Regions Visited 6 Branch Regions 3 Pre-discovered Areas 3 | . 2 . . . 1 . Known Exits Taken 2 | . 1 . . . 1 . Unknown Exits Taken 4 | 1 . 1 1 1 . . Scrap Searched . | . . . . . . . Spaces Dug . | . . . . . . . Terrain Destroyed 172 | . . . . . . 172 Melee . | . . . . . . . Projectile . | . . . . . . . AOE 172 | . . . . . . 172 Terrain Rammed . | . . . . . . . Walls Destroyed . | . . . . . . . Machines Disabled . | . . . . . . . Actions | -11 -10 -10 -10 -9 -8 -8 --------- Run | Yrd Mat Min Exi Min Mat Gar Total 2928 | 59 810 113 215 125 320 1286 Wait 463 | 2 43 20 . 63 128 207 Move 2184 | 42 677 74 213 57 169 952 Hop . | . . . . . . . Pick Up 44 | 8 23 5 1 . 4 3 Fast Attach 19 | 5 7 . . . 2 5 Attach 25 | 1 . 1 . . 6 17 Detach 5 | . 2 . . . 1 2 Swap 22 | . 6 . . . . 16 Drop 21 | . 11 4 1 . 2 3 Fire 121 | 1 41 9 . 5 8 57 Melee . | . . . . . . . Ram . | . . . . . . . Kick . | . . . . . . . Crush . | . . . . . . . Escape Stasis 24 | . . . . . . 24 Rewire . | . . . . . . . Trap . | . . . . . . . Miscellaneous . | . . . . . . . Route ------- -11/Scrapyard -10/Materials (discovered 4 exits: [*Mat x2] / *Min / [*Sub]) -10/Mines (discovered 3 exits: [*Mat x2] / *Exi) -10/Exiles -9/Mines -8/Materials -8/Garrison (discovered 2 exits: [*Fac x2]) History --------- Turn | Location | Event 9 | -11/Scrapyard | Discovered new exit (range 15) 60 | -11/Scrapyard | Entered Materials 152 | -10/Materials | Met 8R-AWN 161 | -10/Materials | Discovered new exit (range 10) 332 | -10/Materials | Build established: Mutant 452 | -10/Materials | Discovered new exit (range 7) 513 | -10/Materials | Discovered new exit (range 15) 641 | -10/Materials | Central database locked down 764 | -10/Materials | Identified exit to Mines 1034 | -10/Materials | Discovered new exit (range 16) 1142 | -10/Materials | Entered Mines 1143 | -10/Mines | Discovered new exit (range 7) 1143 | -10/Mines | Followed 8R-AWN into the Mines 1163 | -10/Mines | Assembled infested the area 1170 | -10/Mines | Received a Rocket Launcher from a helpful Derelict 1270 | -10/Mines | Discovered new exit (range 12) 1289 | -10/Mines | Discovered new exit (range 5) 1295 | -10/Mines | Entered Exiles 1329 | -10/Exiles | Welcomed by 8R-AWN 1351 | -10/Exiles | Met EX-HEX 1390 | -10/Exiles | Met EX-BIN 1409 | -10/Exiles | Aligned with FarCom system 1410 | -10/Exiles | Given EX-Vault access code 1441 | -10/Exiles | Opened EX-Vault 1449 | -10/Exiles | Found Cloak of Protection 1475 | -10/Exiles | Warned to stay clear of 0b10 Research branches 1513 | -10/Exiles | Met EX-DEC 1570 | -10/Exiles | Discovered new exit (range 12) 1585 | -10/Exiles | Left Exiles lab with Cloak of Protection 1585 | -10/Exiles | Entered Mines 1588 | -9/Mines | Received a Mining Laser from a helpful Derelict 1721 | -9/Mines | Discovered new exit (range 13) 1740 | -9/Mines | Entered Materials 1740 | -8/Materials | Accompanied by 1 ally 1740 | -8/Materials | Evolved 4 slots: Utility x4 2143 | -8/Materials | Identified exit to Garrison 2143 | -8/Materials | Entered Garrison 2233 | -8/Garrison | Triggered checkpoint 2577 | -8/Garrison | Triggered checkpoint 2580 | -8/Garrison | Triggered checkpoint 2586 | -8/Garrison | Triggered checkpoint 2628 | -8/Garrison | Destroyed 9 combat bots 2680 | -8/Garrison | Discovered new exit (range 13) 2703 | -8/Garrison | Triggered checkpoint 2754 | -8/Garrison | Lost 3 parts (2n1u) 2943 | -8/Garrison | Triggered checkpoint 2989 | -8/Garrison | Discovered new exit (range 12) 3396 | -8/Garrison | Phase Generator disabled 3547 | -8/Garrison | Spotted B-75 Beast 3788 | -8/Garrison | Learned Factory security intel 3897 | -8/Garrison | Core integrity fell below 50% 3917 | -8/Garrison | Core integrity fell below 20% 3919 | -8/Garrison | Destroyed by Y-45 Defender with Heavy Assault Rifle Last Messages --------------- 03882_ Critical hit (Burn: +37). 03885_ Particle Gun destroyed. 03890_ Disposable Heat Sink destroyed. 03890_ Knocked back. 03893_ Cld. Ion Engine destroyed. 03893_ Adv. Targeting Computer destroyed. 03893_ Beam Rifle destroyed. 03896_ Imp. Heat Sink destroyed. 03902_ Critical hit (Meltdown: +320). 03902_ EM Pulse Cannon destroyed. 03903_ Cld. Ion Engine overload failure. 03906_ Structural Scanner destroyed. 03906_ Critical hit (Blast). 03912_ Cld. Ion Engine destroyed. 03913_ Acquired 4 matter. 03913_ EM Pulse Cannon destroyed. 03915_ Beam Cannon destroyed. 03916_ Imp. Grenade Launcher destroyed. 03919_ Rocket Launcher destroyed. 03919_ Destroyed Rocket Launcher. Map ----- +----------------------------------------------------+ | ?????????????????????#""#???# #"#??### ##????????? | | ?????????????????????#T #???# ###???## ##????????? | | ?????????????????????#" #???# #?????#! ]#????????? | | ?????????????????????## #???# #?????# !]#????????? | | ??????????????????????# #???# #?????#!= #????????? | | ??????????????????????# #?### #?????# ]#????????? | | ??????????????????????# ### ""######!##????????? | | ??????????????????????# =#?????????? | | ??????????????????????# ### #""""" ###?????????? | | ??????????????????????# #?### ###??# #???????????? | | ??????????#####??????## #?# = #??# #???????????? | | ??????????# #??????## #####=###### #???????????? | | ??????????# ######### ! [ #???????????? | | ??????????# ## # [#### #???????????? | | ??????????# ## ###??# #???????????? | | ??????????######## #### ######????# #???????????? | | ??????#######????# ??## #?????????# #???????#???? | | ????""""""""""???# #### #######???# "####???????? | | ???#"""]|]]!!"#### #???# #???????? | | ???#"" ####### ";;;; #???" "## #???????? | | ???#"! ###### # #; #???" #?####??? ?? | | ???#"! # ##??" #???????? #? | | ???#"| BB #" ####" ###""""## ## | | ???#"] ####### BB ##; #### # | | ???#"" #???# | Y | | ????"""!!!!=]"###????## @ | | ?????"""""""""???????## # ###### ## ## # | | ?????#########???????##### ####### ## # | | ??????????????????????????###???# | | ????????????????????????????????# | | ????????????????????????????????# | | #???????????????????????????????# [ | | ###????????????????????????????### # # # | | #????????????????????########## # ^## # | | #???????????????????# = | | ???????????????????# [ | | ???????????????????# ###### = = # | | ??????????????????# #????# # ## ## | | ??????????????????# #????# # ## #? | | ?????#####????????# #????# ######## #? | | # ######"T"#????????# ####### #??????# #? | | "#????????# #???# #? | | ######????????# ####### ##?????# #? | | ### ^######????????# #?????# #??????# #? | | #?# # ########## ####### #??????# ## | | ??### [ #??????# | | # ????#"# ! #??????# | | #?????#" ### #??????###T# | | ??????#" #?# ######################????????### | | ??????#" #?# #???????????????????????????????? | +----------------------------------------------------+ Best States ------------- Heat Dissipation 45 Coolant Potential 100 Energy Generation 14 Energy Capacity 280 Matter Stores 300 Matter Capacity 300 Sight Range 16 Terrain Scan Range 14 Terrain Scan Density 10 Armor Coverage 230 Utility Shielding 33 Evasion (%) 44 Targeting Accuracy 16 Recoil Reduction 2 Offensive Hacking 10 Item Schematics ----------------- None Robot Schematics ------------------ None Fabricated ------------ Nothing Alien Tech Used ----------------- None Achievements -------------- None Challenges ------------ None Game ------ Seed WeaponMyomerShredder Manual? 0 Play Time 00:32:40 Cumulative 99.1 hours Start 2025.01.05 @ 13:29:29 End 2025.01.05 @ 14:03:58 Sessions 1 Manual Loads 0 Difficulty Rogue Special Mode None Game No. 141 Rogue 136 Adventurer 5 Explorer 0 Win Type - Total 3 Types 2/0/0/1/0/0/0/0/0 Lore% 29 Gallery% 60 Achievement% 51 Wizard Run 0 Options --------- Layout 0 ASCII 0 Keyboard 0 Movement Mouse Keybinds 0 Fullscreen 1 Font 24/Smallcaps Map View 76x50 Zoom Use 6% Tactical HUD 1 Map Filters NONE Filters NONE Steam 1 RUN: eb2054c7-f1ee-46c6-8bef-095cc9603942